fUSD/lending_fUSD_20240420
["ID","MTS","AMOUNT","RATE_DAILY","PERIOD"]
[322995388,1713579056060,-1369.35,0.00015342,2]
[322995389,1713579056070,-504.13,0.00015342,2]
[322995390,1713579056079,-791.33,0.00015342,2]
[322995391,1713579056088,-500.0,0.00015342,2]
[322995392,1713579056098,-2883.08,0.00015342,2]
[322995393,1713579056107,-1205.24,0.00015342,2]
[322995394,1713579056117,-2983.47,0.00015342,2]
[322995395,1713579056127,-638.86,0.00015342,2]
[322995396,1713579056137,-500.0,0.00015342,2]
[322995397,1713579056146,-1983.35,0.00015342,2]
[322995398,1713579056157,-500.0,0.00015342,2]
[322995399,1713579056167,-2720.73,0.00015342,2]
[322995400,1713579056177,-671.06,0.00015342,2]
[322995401,1713579056186,-1832.66,0.00015342,2]
[322995402,1713579056200,-500.0,0.00015342,2]
[322995403,1713579056210,-500.0,0.00015342,2]
[322995404,1713579056219,-4841.65,0.00015342,2]
[322995405,1713579056228,-500.0,0.00015342,2]
[322995406,1713579056238,-500.0,0.00015342,2]
[322995407,1713579056250,-1318.78,0.00015342,2]
[322995408,1713579056260,-915.95,0.00015342,2]
[322995409,1713579056269,-500.0,0.00015342,2]
[322995410,1713579056279,-2713.62,0.00015342,2]
[322995411,1713579056288,-3819.53,0.00015342,2]
[322995412,1713579056298,-529.05,0.00015342,2]
[322995413,1713579056308,-1352.11,0.00015342,2]
[322995414,1713579056319,-500.0,0.00015342,2]
[322995415,1713579056328,-629.87,0.00015342,2]
[322995416,1713579056337,-2203.75,0.00015342,2]
[322995417,1713579056347,-2996.05,0.00015342,2]
[322995418,1713579056356,-500.0,0.00015342,2]
[322995419,1713579056365,-500.0,0.00015342,2]
[322995420,1713579056375,-5396.65,0.00015342,2]
[322995421,1713579056384,-998.47,0.00015342,2]
[322995422,1713579056394,-1952.96,0.00015342,2]
[322995423,1713579056403,-500.0,0.00015342,2]
[322995424,1713579056412,-529.53,0.00015342,2]
[322995425,1713579056422,-500.0,0.00015342,2]
[322995426,1713579056432,-436.40339478,0.00015342,2]
[322995427,1713579056444,-500.0,0.00015342,2]
[322995428,1713579056453,-500.0,0.00015342,2]
[322995429,1713579056463,-3603.79,0.00015342,2]
[322995430,1713579056472,-2002.19,0.00015342,2]
[322995431,1713579056481,-554.46,0.00015342,2]
[322995432,1713579056490,-1097.62,0.00015342,2]
[322995433,1713579056499,-500.0,0.00015342,2]
[322995434,1713579056508,-1160.91,0.00015342,2]
[322995435,1713579056518,-3151.62,0.00015342,2]
[322995436,1713579056527,-500.0,0.00015342,2]
[322995437,1713579056536,-1062.22,0.00015342,2]
[322995438,1713579056546,-3305.74,0.00015342,2]
[322995439,1713579056555,-1684.93,0.00015342,2]
[322995440,1713579056564,-1942.38,0.00015342,2]
[322995441,1713579056573,-500.0,0.00015342,2]
[322995442,1713579056582,-500.0,0.00015342,2]
[322995443,1713579056592,-999.27,0.00015342,2]
[322995444,1713579056601,-3350.55,0.00015342,2]
[322995445,1713579056610,-2837.14,0.00015342,2]
[322995446,1713579056619,-500.0,0.00015342,2]
[322995447,1713579056628,-2547.97,0.00015342,2]
[322995448,1713579056637,-1411.94,0.00015342,2]
[322995449,1713579056647,-500.0,0.00015342,2]
[322995450,1713579056656,-500.0,0.00015342,2]
[322995451,1713579056666,-6333.31,0.00015342,2]
[322995452,1713579056675,-153.19207726,0.00015342,2]
[322995453,1713579056684,-563.98,0.00015342,2]
[322995454,1713579056695,-977.44,0.00015342,2]
[322995455,1713579056705,-692.1,0.00015342,2]
[322995456,1713579056714,-1299.74,0.00015342,2]
[322995457,1713579056723,-500.0,0.00015342,2]
[322995458,1713579056732,-844.22,0.00015342,2]
[322995459,1713579056742,-500.0,0.00015342,2]
[322995460,1713579056751,-1240.47,0.00015342,2]
[322995461,1713579056760,-797.96,0.00015342,2]
[322995462,1713579056769,-3779.93,0.00015342,2]
[322995463,1713579056778,-4999.46,0.00015342,2]
[322995464,1713579056787,-500.0,0.00015342,2]
[322995465,1713579056796,-500.0,0.00015342,2]
[322995466,1713579056804,-500.0,0.00015342,2]
[322995467,1713579056813,-1882.08,0.00015342,2]
[322995468,1713579056822,-726.02,0.00015342,2]
[322995469,1713579056831,-1122.03,0.00015342,2]
[322995470,1713579056841,-500.0,0.00015342,2]
[322995471,1713579056850,-2107.05,0.00015342,2]
[322995472,1713579056859,-500.0,0.00015342,2]
[322995473,1713579056869,-3235.99,0.00015342,2]
[322995474,1713579056878,-3231.91,0.00015342,2]
[322995475,1713579056887,-1924.47,0.00015342,2]
[322995476,1713579056896,-500.0,0.00015342,2]
[322995477,1713579056906,-1536.26,0.00015342,2]
[322995478,1713579056915,-500.0,0.00015342,2]
[322995479,1713579056924,-2285.27,0.00015342,2]
[322995480,1713579056933,-2207.51,0.00015342,2]
[322995481,1713579056947,-500.0,0.00015342,2]
[322995482,1713579056959,-963.08,0.00015342,2]
[322995483,1713579056969,-502.97211483,0.00015342,2]
[322995484,1713579056977,-645.23,0.00015342,2]
[322995485,1713579056987,-2351.58,0.00015342,2]
[322995486,1713579056996,-500.0,0.00015342,2]
[322995487,1713579057006,-1124.83,0.00015342,2]
[322995488,1713579057015,-1732.92,0.00015342,2]
[322995489,1713579057024,-709.64,0.00015342,2]
[322995490,1713579057033,-500.0,0.00015342,2]
[322995491,1713579057043,-558.21,0.00015342,2]
[322995492,1713579057052,-1728.3,0.00015342,2]
[322995493,1713579057061,-2171.97,0.00015342,2]
[322995494,1713579057070,-500.0,0.00015342,2]
[322995495,1713579057079,-1625.77,0.00015342,2]
[322995496,1713579057088,-500.0,0.00015342,2]
[322995497,1713579057098,-503.06958541,0.00015342,2]
[322995498,1713579057107,-6549.72,0.00015342,2]
[322995499,1713579057117,-606.96,0.00015342,2]
[322995500,1713579057126,-500.0,0.00015342,2]
[322995501,1713579057135,-526.09,0.00015342,2]
[322995502,1713579057144,-1133.58,0.00015342,2]
[322995503,1713579057153,-500.0,0.00015342,2]
[322995504,1713579057162,-822.81,0.00015342,2]
[322995505,1713579057171,-500.0,0.00015342,2]
[322995506,1713579057181,-500.0,0.00015342,2]
[322995507,1713579057191,-655.39,0.00015342,2]
[322995508,1713579057202,-3180.5,0.00015342,2]
[322995509,1713579057211,-1085.81,0.00015342,2]
[322995510,1713579057221,-500.0,0.00015342,2]
[322995511,1713579057231,-500.0,0.00015342,2]
[322995512,1713579057240,-500.0,0.00015342,2]
[322995513,1713579057249,-5382.87,0.00015342,2]
[322995514,1713579057259,-572.46,0.00015342,2]
[322995515,1713579057268,-1101.07,0.00015342,2]
[322995516,1713579057278,-553.92,0.00015342,2]
[322995517,1713579057287,-500.0,0.00015342,2]
[322995518,1713579057295,-2954.53,0.00015342,2]
[322995519,1713579057305,-500.0,0.00015342,2]
[322995520,1713579057314,-500.0,0.00015342,2]
[322995521,1713579057324,-1036.14,0.00015342,2]
[322995522,1713579057333,-1211.75,0.00015342,2]
[322995523,1713579057342,-500.0,0.00015342,2]
[322995524,1713579057352,-742.24,0.00015342,2]
[322995525,1713579057361,-500.0,0.00015342,2]
[322995526,1713579057371,-4721.43133719,0.00015342,2]
[322995527,1713579058181,-834.57866281,0.00015342,2]
[322995528,1713579058192,-887.5,0.00015342,2]
[322995529,1713579058202,-500.0,0.00015342,2]
[322995530,1713579058212,-2052.12,0.00015342,2]
[322995531,1713579058222,-315.40727453,0.00015342,2]
[322995532,1713579058231,-500.0,0.00015342,2]
[322995533,1713579058242,-345.95304651,0.00015342,2]
[322995534,1713579058251,-2340.55,0.00015342,2]
[322995535,1713579058261,-618.16,0.00015342,2]
[322995536,1713579058271,-835.61,0.00015342,2]
[322995537,1713579058281,-1386.49,0.00015342,2]
[322995538,1713579058290,-556.48,0.00015342,2]
[322995539,1713579058300,-5432.06,0.00015342,2]
[322995540,1713579058310,-1915.71,0.00015342,2]
[322995541,1713579058319,-500.0,0.00015342,2]
[322995542,1713579058329,-8238.3,0.00015342,2]
[322995543,1713579058339,-729.27,0.00015342,2]
[322995544,1713579058349,-500.0,0.00015342,2]
[322995545,1713579058359,-500.0,0.00015342,2]
[322995546,1713579058369,-504.90965909,0.00015342,2]
[322995547,1713579058379,-964.28,0.00015342,2]
[322995548,1713579058389,-500.0,0.00015342,2]
[322995549,1713579058400,-500.0,0.00015342,2]
[322995550,1713579058410,-3313.63,0.00015342,2]
[322995551,1713579058420,-438.613045,0.00015342,2]
[322995552,1713579058431,-3192.0,0.00015342,2]
[322995553,1713579058442,-24804.5781339,0.0001539,2]
[322995554,1713579058452,-562.07485058,0.00015416,2]
[322995555,1713579058462,-2537.89179498,0.00015438,2]
[322995556,1713579058473,-9331.5653122,0.00015479,2]
[322995557,1713579058483,-150.51,0.000155,2]
[322995558,1713579058493,-150.0,0.000155,2]
[322995559,1713579058504,-289.94170268,0.00015505,2]
[322995560,1713579058515,-151.96338088,0.00015514,2]
[322995561,1713579058527,-16297.19288676,0.00015514,2]
[322995562,1713579058538,-676.44170112,0.00015514,2]
[322995563,1713579058550,-32005.65575008,0.00015521,2]
[322995564,1713579058560,-2537.89179498,0.00015594,2]
[322995565,1713579058570,-63966.6310696,0.00015603,2]
[322995566,1713579058580,-8502.2401356,0.00015603,2]
[322995567,1713579058591,-2827.2486159,0.00015603,2]
[322995568,1713579058601,-5727.0,0.00015605,2]
[322995569,1713579058610,-2704.0,0.00015605,2]
[322995570,1713579058620,-5891.0,0.00015605,2]
[322995571,1713579058629,-37676.0,0.00015605,2]
[322995572,1713579058638,-1055.0,0.00015605,2]
[322995573,1713579058649,-133044.26194656,0.00015614,2]
[322995574,1713579058659,-202.86,0.00015614,2]
[322995575,1713579058668,-202.86,0.00015614,2]
[322995576,1713579058678,-3000.0,0.00015614,2]
[322995577,1713579058688,-10000.0,0.00015616,2]
[322995578,1713579058699,-9117.98,0.00015616,2]
[322995579,1713579058709,-10000.0,0.00015616,2]
[322995580,1713579058719,-10000.0,0.00015616,2]
[322995581,1713579058729,-10000.0,0.00015616,2]
[322995582,1713579058738,-8377.14041574,0.00015616,2]
[322995583,1713579058748,-589.01,0.00015616,2]
[322995584,1713579058757,-500.0,0.00015616,2]
[322995585,1713579058766,-508.06,0.00015616,2]
[322995586,1713579058775,-500.0,0.00015616,2]
[322995587,1713579058784,-727.14,0.00015616,2]
[322995588,1713579058794,-500.0,0.00015616,2]
[322995589,1713579058803,-789.85,0.00015616,2]
[322995590,1713579058812,-500.0,0.00015616,2]
[322995591,1713579058822,-622.2,0.00015616,2]
[322995592,1713579058832,-500.0,0.00015616,2]
[322995593,1713579058841,-500.0,0.00015616,2]
[322995594,1713579058851,-500.0,0.00015616,2]
[322995595,1713579058860,-714.75,0.00015616,2]
[322995596,1713579058870,-500.0,0.00015616,2]
[322995597,1713579058879,-500.0,0.00015616,2]
[322995598,1713579058888,-506.78,0.00015616,2]
[322995599,1713579058898,-500.0,0.00015616,2]
[322995600,1713579058907,-507.23,0.00015616,2]
[322995601,1713579058918,-500.0,0.00015616,2]
[322995602,1713579058927,-576.42,0.00015616,2]
[322995603,1713579058937,-543.55,0.00015616,2]
[322995604,1713579058948,-605.27,0.00015616,2]
[322995605,1713579058959,-1015.74,0.00015616,2]
[322995606,1713579058969,-550.98,0.00015616,2]
[322995607,1713579058978,-500.0,0.00015616,2]
[322995608,1713579058987,-500.0,0.00015616,2]
[322995609,1713579058998,-562.08,0.00015616,2]
[322995610,1713579059007,-500.0,0.00015616,2]
[322995611,1713579059018,-500.0,0.00015616,2]
[322995612,1713579059027,-577.4,0.00015616,2]
[322995613,1713579059038,-500.0,0.00015616,2]
[322995614,1713579059048,-503.55623564,0.00015616,2]
[322995615,1713579059057,-1036.35,0.00015616,2]
[322995616,1713579059067,-500.0,0.00015616,2]
[322995617,1713579059077,-1318.82,0.00015616,2]
[322995618,1713579059087,-500.0,0.00015616,2]
[322995619,1713579059096,-500.0,0.00015616,2]
[322995620,1713579059106,-500.0,0.00015616,2]
[322995621,1713579059116,-500.0,0.00015616,2]
[322995622,1713579059126,-503.19895115,0.00015616,2]
[322995623,1713579059135,-500.0,0.00015616,2]
[322995624,1713579059145,-694.42,0.00015616,2]
[322995625,1713579059155,-500.0,0.00015616,2]
[322995626,1713579059166,-500.0,0.00015616,2]
[322995627,1713579059176,-500.0,0.00015616,2]
[322995628,1713579059185,-508.51,0.00015616,2]
[322995629,1713579059196,-500.0,0.00015616,2]
[322995630,1713579059206,-1169.63,0.00015616,2]
[322995631,1713579059216,-500.0,0.00015616,2]
[322995632,1713579059226,-632.8,0.00015616,2]
[322995633,1713579059236,-625.72,0.00015616,2]
[322995634,1713579059245,-1111.76,0.00015616,2]
[322995635,1713579059255,-500.0,0.00015616,2]
[322995636,1713579059265,-500.0,0.00015616,2]
[322995637,1713579059275,-500.0,0.00015616,2]
[322995638,1713579059286,-1159.39,0.00015616,2]
[322995639,1713579059296,-500.0,0.00015616,2]
[322995640,1713579059306,-1456.61,0.00015616,2]
[322995641,1713579059316,-500.0,0.00015616,2]
[322995642,1713579059326,-500.0,0.00015616,2]
[322995643,1713579059335,-500.0,0.00015616,2]
[322995644,1713579059345,-500.0,0.00015616,2]
[322995645,1713579059355,-526.56,0.00015616,2]
[322995646,1713579059366,-612.33,0.00015616,2]
[322995647,1713579059375,-500.0,0.00015616,2]
[322995648,1713579059385,-1295.65,0.00015616,2]
[322995649,1713579059396,-648.78,0.00015616,2]
[322995650,1713579059406,-651.67,0.00015616,2]
[322995651,1713579059416,-500.0,0.00015616,2]
[322995652,1713579059426,-500.0,0.00015616,2]
[322995653,1713579059437,-500.0,0.00015616,2]
[322995654,1713579059448,-622.97,0.00015616,2]
[322995655,1713579059458,-641.72,0.00015616,2]
[322995656,1713579059467,-1043.14,0.00015616,2]
[322995657,1713579059476,-500.0,0.00015616,2]
[322995658,1713579059486,-500.0,0.00015616,2]
[322995659,1713579059497,-500.0,0.00015616,2]
[322995660,1713579059506,-500.0,0.00015616,2]
[322995661,1713579059515,-500.0,0.00015616,2]
[322995662,1713579059524,-500.0,0.00015616,2]
[322995663,1713579059534,-304.24479631,0.00015616,2]
[322995664,1713579059594,-710.55753623,0.00015068,2]
[322995665,1713579059739,-457.58246377,0.00015068,2]
[322995666,1713579059749,-195.75520369,0.00015616,2]
[322995667,1713579059760,-500.0,0.00015616,2]
[322995668,1713579059770,-820.6,0.00015616,2]
[322995669,1713579059781,-805.85,0.00015616,2]
[322995670,1713579059791,-652.78,0.00015616,2]
[322995671,1713579059801,-500.0,0.00015616,2]
[322995672,1713579059810,-500.0,0.00015616,2]
[322995673,1713579059819,-201.97775353,0.00015616,2]
[322995674,1713579059829,-500.0,0.00015616,2]
[322995675,1713579059839,-500.0,0.00015616,2]
[322995676,1713579059850,-500.0,0.00015616,2]
[322995677,1713579059861,-1100.67,0.00015616,2]
[322995678,1713579059872,-1057.59,0.00015616,2]
[322995679,1713579059882,-1079.06,0.00015616,2]
[322995680,1713579059891,-500.0,0.00015616,2]
[322995681,1713579059901,-677.55,0.00015616,2]
[322995682,1713579059911,-878.53,0.00015616,2]
[322995683,1713579059922,-1100.85,0.00015616,2]
[322995684,1713579059933,-500.0,0.00015616,2]
[322995685,1713579059945,-1036.4,0.00015616,2]
[322995686,1713579059962,-1659.44,0.00015616,2]
[322995687,1713579059971,-500.0,0.00015616,2]
[322995688,1713579059982,-1130.69,0.00015616,2]
[322995689,1713579059993,-1026.95,0.00015616,2]
[322995690,1713579060003,-500.0,0.00015616,2]
[322995691,1713579060014,-500.0,0.00015616,2]
[322995692,1713579060025,-500.0,0.00015616,2]
[322995693,1713579060037,-500.0,0.00015616,2]
[322995694,1713579060048,-500.0,0.00015616,2]
[322995695,1713579060059,-608.88,0.00015616,2]
[322995696,1713579060069,-500.0,0.00015616,2]
[322995697,1713579060079,-500.0,0.00015616,2]
[322995698,1713579060089,-500.0,0.00015616,2]
[322995699,1713579060099,-951.43,0.00015616,2]
[322995700,1713579060108,-1060.16,0.00015616,2]
[322995701,1713579060118,-840.24,0.00015616,2]
[322995702,1713579060128,-500.0,0.00015616,2]
[322995703,1713579060137,-792.69,0.00015616,2]
[322995704,1713579060148,-793.5,0.00015616,2]
[322995705,1713579060158,-1039.46,0.00015616,2]
[322995706,1713579060167,-861.39,0.00015616,2]
[322995707,1713579060177,-500.0,0.00015616,2]
[322995708,1713579060187,-500.0,0.00015616,2]
[322995709,1713579060199,-817.87,0.00015616,2]
[322995710,1713579060208,-1317.9,0.00015616,2]
[322995711,1713579060219,-551.68,0.00015616,2]
[322995712,1713579060230,-500.0,0.00015616,2]
[322995713,1713579060240,-500.0,0.00015616,2]
[322995714,1713579060250,-722.24,0.00015616,2]
[322995715,1713579060262,-500.0,0.00015616,2]
[322995716,1713579060272,-500.0,0.00015616,2]
[322995717,1713579060282,-629.68,0.00015616,2]
[322995718,1713579060293,-1097.03,0.00015616,2]
[322995719,1713579060304,-500.0,0.00015616,2]
[322995720,1713579060313,-518.96,0.00015616,2]
[322995721,1713579060324,-500.0,0.00015616,2]
[322995722,1713579060335,-500.0,0.00015616,2]
[322995723,1713579060345,-500.0,0.00015616,2]
[322995724,1713579060355,-908.85,0.00015616,2]
[322995725,1713579060365,-754.12,0.00015616,2]
[322995726,1713579060740,-500.0,0.00015616,2]
[322995727,1713579060751,-500.0,0.00015616,2]
[322995728,1713579060762,-899.07,0.00015616,2]
[322995729,1713579060773,-500.0,0.00015616,2]
[322995730,1713579060784,-593.29,0.00015616,2]
[322995731,1713579060794,-500.0,0.00015616,2]
[322995732,1713579060806,-625.45,0.00015616,2]
[322995733,1713579060816,-859.71,0.00015616,2]
[322995734,1713579060827,-500.0,0.00015616,2]
[322995735,1713579060839,-500.0,0.00015616,2]
[322995736,1713579060851,-500.0,0.00015616,2]
[322995737,1713579060862,-500.0,0.00015616,2]
[322995738,1713579060875,-1309.94,0.00015616,2]
[322995739,1713579060888,-999.55,0.00015616,2]
[322995740,1713579060898,-500.0,0.00015616,2]
[322995741,1713579060910,-500.0,0.00015616,2]
[322995742,1713579060924,-974.27,0.00015616,2]
[322995743,1713579060938,-500.0,0.00015616,2]
[322995744,1713579060950,-500.0,0.00015616,2]
[322995745,1713579060964,-500.0,0.00015616,2]
[322995746,1713579060974,-500.0,0.00015616,2]
[322995747,1713579060985,-695.13,0.00015616,2]
[322995748,1713579060996,-1075.2,0.00015616,2]
[322995749,1713579061008,-500.0,0.00015616,2]
[322995750,1713579061019,-868.03,0.00015616,2]
[322995751,1713579061029,-500.0,0.00015616,2]
[322995752,1713579061042,-555.54,0.00015616,2]
[322995753,1713579061053,-500.0,0.00015616,2]
[322995754,1713579061065,-500.0,0.00015616,2]
[322995755,1713579061077,-500.0,0.00015616,2]
[322995756,1713579061088,-520.84,0.00015616,2]
[322995757,1713579061100,-650.04,0.00015616,2]
[322995758,1713579061112,-500.0,0.00015616,2]
[322995759,1713579061122,-544.94,0.00015616,2]
[322995760,1713579061133,-868.63,0.00015616,2]
[322995761,1713579061145,-597.26,0.00015616,2]
[322995762,1713579061155,-500.0,0.00015616,2]
[322995763,1713579061166,-560.78,0.00015616,2]
[322995764,1713579061176,-697.31,0.00015616,2]
[322995765,1713579061188,-506.7,0.00015616,2]
[322995766,1713579061201,-657.01,0.00015616,2]
[322995767,1713579061211,-500.0,0.00015616,2]
[322995768,1713579061222,-500.0,0.00015616,2]
[322995769,1713579061232,-512.61,0.00015616,2]
[322995770,1713579061242,-500.0,0.00015616,2]
[322995771,1713579061252,-2349.15,0.00015616,2]
[322995772,1713579061263,-500.0,0.00015616,2]
[322995773,1713579061273,-1204.92,0.00015616,2]
[322995774,1713579061283,-538.51,0.00015616,2]
[322995775,1713579061294,-500.0,0.00015616,2]
[322995776,1713579061304,-919.71,0.00015616,2]
[322995777,1713579061314,-500.0,0.00015616,2]
[322995778,1713579061324,-987.95,0.00015616,2]
[322995779,1713579061334,-503.2926988,0.00015616,2]
[322995780,1713579061344,-797.31,0.00015616,2]
[322995781,1713579061354,-604.35,0.00015616,2]
[322995782,1713579061363,-2081.12,0.00015616,2]
[322995783,1713579061373,-500.0,0.00015616,2]
[322995784,1713579061381,-580.96,0.00015616,2]
[322995785,1713579061391,-1246.43,0.00015616,2]
[322995786,1713579061401,-871.18,0.00015616,2]
[322995787,1713579061410,-500.0,0.00015616,2]
[322995788,1713579061419,-500.0,0.00015616,2]
[322995789,1713579061428,-1350.27,0.00015616,2]
[322995790,1713579061438,-500.0,0.00015616,2]
[322995791,1713579061448,-500.0,0.00015616,2]
[322995792,1713579061457,-1008.0,0.00015616,2]
[322995793,1713579061467,-1362.13,0.00015616,2]
[322995794,1713579061478,-500.0,0.00015616,2]
[322995795,1713579061487,-892.59,0.00015616,2]
[322995796,1713579061498,-500.0,0.00015616,2]
[322995797,1713579061510,-584.15,0.00015616,2]
[322995798,1713579061519,-500.0,0.00015616,2]
[322995799,1713579061529,-500.0,0.00015616,2]
[322995800,1713579061538,-549.45,0.00015616,2]
[322995801,1713579061549,-1655.88,0.00015616,2]
[322995802,1713579061560,-500.0,0.00015616,2]
[322995803,1713579061570,-500.0,0.00015616,2]
[322995804,1713579061581,-500.0,0.00015616,2]
[322995805,1713579061591,-1191.11,0.00015616,2]
[322995806,1713579061602,-500.0,0.00015616,2]
[322995807,1713579061612,-500.0,0.00015616,2]
[322995808,1713579061622,-500.0,0.00015616,2]
[322995809,1713579061632,-1136.3,0.00015616,2]
[322995810,1713579061642,-663.48,0.00015616,2]
[322995811,1713579061652,-1042.17,0.00015616,2]
[322995812,1713579061662,-456.70619337,0.00015616,2]
[322995813,1713579061672,-745.64,0.00015616,2]
[322995814,1713579061682,-500.0,0.00015616,2]
[322995815,1713579061691,-687.52,0.00015616,2]
[322995816,1713579061701,-552.61,0.00015616,2]
[322995817,1713579061711,-982.98,0.00015616,2]
[322995818,1713579061720,-500.0,0.00015616,2]
[322995819,1713579061731,-639.80005544,0.00015616,2]
[322995820,1713579061741,-957.04,0.00015616,2]
[322995821,1713579061752,-1044.94,0.00015616,2]
[322995822,1713579061762,-500.0,0.00015616,2]
[322995823,1713579061772,-686.31,0.00015616,2]
[322995824,1713579061782,-942.31,0.00015616,2]
[322995825,1713579061792,-551.67,0.00015616,2]
[322995826,1713579061802,-504.09259369,0.00015616,2]
[322995827,1713579061812,-500.0,0.00015616,2]
[322995828,1713579061821,-500.0,0.00015616,2]
[322995829,1713579061830,-1356.24,0.00015616,2]
[322995830,1713579061839,-500.0,0.00015616,2]
[322995831,1713579061848,-1122.97,0.00015616,2]
[322995832,1713579061857,-534.82,0.00015616,2]
[322995833,1713579061867,-500.0,0.00015616,2]
[322995834,1713579061877,-500.0,0.00015616,2]
[322995835,1713579061890,-720.77,0.00015616,2]
[322995836,1713579061901,-980.07,0.00015616,2]
[322995837,1713579061911,-500.0,0.00015616,2]
[322995838,1713579061920,-968.05,0.00015616,2]
[322995839,1713579061929,-500.0,0.00015616,2]
[322995840,1713579061939,-500.0,0.00015616,2]
[322995841,1713579061949,-500.0,0.00015616,2]
[322995842,1713579061964,-500.0,0.00015616,2]
[322995843,1713579061975,-1185.03,0.00015616,2]
[322995844,1713579061986,-518.04,0.00015616,2]
[322995845,1713579061996,-504.38992134,0.00015616,2]
[322995846,1713579062007,-698.13,0.00015616,2]
[322995847,1713579062017,-500.0,0.00015616,2]
[322995848,1713579062029,-500.0,0.00015616,2]
[322995849,1713579062040,-436.86116106,0.00015616,2]
[322995850,1713579062049,-730.92,0.00015616,2]
[322995851,1713579062059,-500.0,0.00015616,2]
[322995852,1713579062069,-164.21197227,0.00015616,2]
[322995853,1713579062079,-557.43,0.00015616,2]
[322995854,1713579062089,-500.0,0.00015616,2]
[322995855,1713579062102,-808.03,0.00015616,2]
[322995856,1713579062112,-500.0,0.00015616,2]
[322995857,1713579062124,-500.0,0.00015616,2]
[322995858,1713579062135,-500.0,0.00015616,2]
[322995859,1713579062145,-500.0,0.00015616,2]
[322995860,1713579062157,-500.0,0.00015616,2]
[322995861,1713579062168,-500.0,0.00015616,2]
[322995862,1713579062177,-500.0,0.00015616,2]
[322995863,1713579062187,-500.0,0.00015616,2]
[322995864,1713579062198,-787.95,0.00015616,2]
[322995865,1713579062207,-500.0,0.00015616,2]
[322995866,1713579062216,-583.13,0.00015616,2]
[322995867,1713579062226,-2025.44,0.00015616,2]
[322995868,1713579062236,-500.0,0.00015616,2]
[322995869,1713579062246,-500.0,0.00015616,2]
[322995870,1713579062256,-500.0,0.00015616,2]
[322995871,1713579062266,-581.54,0.00015616,2]
[322995872,1713579062276,-500.0,0.00015616,2]
[322995873,1713579062285,-509.14,0.00015616,2]
[322995874,1713579062294,-1358.53,0.00015616,2]
[322995875,1713579062304,-500.0,0.00015616,2]
[322995876,1713579062313,-764.94,0.00015616,2]
[322995877,1713579062324,-500.0,0.00015616,2]
[322995878,1713579062334,-698.17,0.00015616,2]
[322995879,1713579062345,-503.2746297,0.00015616,2]
[322995880,1713579062355,-696.66,0.00015616,2]
[322995881,1713579062364,-1005.85,0.00015616,2]
[322995882,1713579062374,-825.46,0.00015616,2]
[322995883,1713579062384,-505.51703835,0.00015616,2]
[322995884,1713579062393,-500.0,0.00015616,2]
[322995885,1713579062402,-500.0,0.00015616,2]
[322995886,1713579062412,-843.47,0.00015616,2]
[322995887,1713579062421,-520.16,0.00015616,2]